bitfinex-derivatives/quotes_ETHF0:USTF0_20250727
["timestamp","ask_amount","ask_price","bid_price","bid_amount"]
[1753642078510,6.75582,3848.5,3848.4,24.56344]
[1753642079218,4.0673,3848.5,3848.4,26.95644]
[1753642079421,0.51951,3848.7,3848.6,2.9046]
[1753642079720,0.51951,3848.7,3848.6,27.826]
[1753642080017,1.36428,3849.0,3848.9,2.90456]
[1753642080221,0.70768571,3849.0,3848.9,31.03376]
[1753642080417,2.8281,3849.4,3849.3,5.9475]
[1753642080617,0.70756944,3849.4,3849.3,31.03372]
[1753642081319,0.51936,3849.8,3849.7,2.90445]
[1753642081515,2.07140261,3849.8,3849.7,27.82685]
[1753642081715,2.63510261,3849.8,3849.7,27.82685]
[1753642081916,1.4085,3849.8,3849.7,31.03465]
[1753642082215,0.2,3849.9,3849.8,4.08175]
[1753642085313,0.2,3849.9,3849.8,6.46685]
[1753642089220,1.6085,3849.9,3849.8,26.91085]
[1753642089525,5.9668,3850.8,3850.7,5.0795]
[1753642089822,6.48601,3850.8,3850.7,26.3775]
[1753642091019,5.9668,3850.8,3850.7,26.89673]
[1753642091713,4.6606,3850.8,3850.7,26.89673]
[1753642091912,2.3814,3850.8,3850.7,27.76473]
[1753642092116,4.32017,3851.1,3851.0,6.46669]
[1753642092321,4.32017,3851.1,3851.0,27.75369]
[1753642092816,6.48597,3851.1,3851.0,27.75369]
[1753642093726,5.17977,3851.1,3851.0,27.75369]
[1753642093924,1.4085,3851.3,3851.2,5.63215]
[1753642094122,0.51915,3851.3,3851.2,27.74265]
[1753642094320,1.92765,3851.3,3851.2,27.2235]
[1753642094522,5.9668,3851.3,3851.2,30.95046]
[1753642094825,6.48595,3851.3,3851.2,30.95046]
[1753642095621,6.48595,3851.3,3851.2,27.74266]
[1753642096223,5.9668,3851.3,3851.2,27.74266]
[1753642096423,1.4085,3851.3,3851.2,30.95046]
[1753642096618,3.241,3851.6,3851.5,2.90421]
[1753642096825,2.3814,3851.6,3851.5,27.72561]
[1753642097026,0.5637,3851.6,3851.5,27.72561]
[1753642097219,2.05569,3851.8,3851.7,2.90419]
[1753642097427,5.01487065,3851.8,3851.7,27.2025]
[1753642097627,5.87447065,3851.8,3851.7,30.4103]
[1753642097818,7.18067065,3851.8,3851.7,30.4103]
[1753642098329,7.18067065,3851.8,3851.7,29.5423]
[1753642098525,2.91539,3851.1,3851.0,2.3851]
[1753642098729,6.48599,3851.1,3851.0,23.6331]
[1753642098927,6.48599,3851.1,3851.0,26.3275]
[1753642099128,6.48599,3851.1,3851.0,22.0825]
[1753642099328,6.48599,3851.1,3851.0,23.9345]
[1753642099528,6.48599,3851.1,3851.0,24.8718]
[1753642099829,6.48599,3851.1,3851.0,26.3275]
[1753642100029,6.48599,3851.1,3851.0,26.84668]
[1753642100231,6.48599,3851.1,3851.0,26.3275]
[1753642100430,6.48599,3851.1,3851.0,26.84669]
[1753642100629,6.48599,3851.1,3851.0,5.59869]
[1753642100831,6.48599,3851.1,3851.0,26.84869]
[1753642103130,6.48599,3851.1,3851.0,26.3295]
[1753642104430,6.48599,3851.1,3851.0,26.3035]
[1753642104735,6.48597,3851.1,3851.0,25.36699]
[1753642105128,6.48597,3851.1,3851.0,26.82269]
[1753642105323,6.48597,3851.1,3851.0,27.69069]
[1753642105324,0.5637,3851.1,3851.0,27.69069]
[1753642105534,4.22152,3851.5,3851.4,2.3851]
[1753642105734,4.91787669,3851.5,3851.4,26.2885]
[1753642105934,4.22152,3851.5,3851.4,26.2885]
[1753642106238,7.18252892,3851.5,3851.4,24.8328]
[1753642108931,7.18252892,3851.5,3851.4,25.35193]
[1753642109329,7.18252892,3851.5,3851.4,24.8328]
[1753642109830,7.18252892,3851.5,3851.4,23.5941]
[1753642110336,7.18252892,3851.5,3851.4,21.209]
[1753642110531,0.51919,3851.1,3851.0,0.51917]
[1753642110736,7.06629892,3851.1,3851.0,21.70117]
[1753642111628,7.06629892,3851.1,3851.0,25.41517]
[1753642112738,7.06629892,3851.1,3851.0,5.75177]
[1753642112939,7.06629892,3851.1,3851.0,24.889]
[1753642113339,0.8427,3850.8,3850.6,1.3105]
[1753642113543,6.36973,3850.7,3850.6,0.8767]
[1753642113741,6.36973,3850.7,3850.6,22.0397]
[1753642114135,7.06808587,3850.7,3850.6,24.877]
[1753642116342,7.06808587,3850.7,3850.6,22.0397]
[1753642117241,7.06808587,3850.7,3850.6,24.877]
[1753642117445,6.36979,3850.2,3850.1,23.9221]
[1753642117639,6.36979,3850.2,3850.1,0.8767]
[1753642118234,6.36979,3850.2,3850.1,1.4546]
[1753642118441,4.6473,3850.2,3850.1,6.1491]
[1753642118641,0.5656,3850.2,3850.1,6.66841]
[1753642118851,3.4774,3850.8,3850.7,3.32]
[1753642119145,0.69898116,3850.8,3850.7,9.87613]
[1753642119342,1.21819116,3850.8,3850.7,9.87613]
[1753642119646,2.10728116,3850.8,3850.7,9.87613]
[1753642119842,3.09668116,3850.8,3850.7,9.87613]
[1753642120240,1.68838116,3850.8,3850.7,9.87613]
[1753642120545,0.69898116,3850.8,3850.7,9.87613]
[1753642120740,1.4083,3851.5,3851.4,2.92263]
[1753642120941,1.96281242,3851.6,3851.5,2.92262]
[1753642121144,7.76681242,3851.6,3851.5,1.4546]
[1753642121340,0.8427,3851.0,3850.9,0.8767]
[1753642121540,5.52699,3851.0,3850.9,22.0447]
[1753642121842,6.36969,3851.0,3850.9,22.5639]
[1753642122844,6.36969,3851.0,3850.9,23.1418]
[1753642123148,6.36969,3851.0,3850.9,22.0447]
[1753642123844,2.8398,3851.4,3851.3,6.66825]
[1753642124051,1.2032,3851.7,3851.3,6.66825]
[1753642124052,5.8505,3851.7,3851.6,5.7517]
[1753642125344,5.8505,3851.7,3851.6,6.6682]
[1753642126346,4.0292,3851.9,3851.8,5.35768]
[1753642126547,4.0292,3851.9,3851.8,6.66818]
[1753642126743,6.0505,3851.9,3851.8,5.75168]
[1753642127347,6.56956,3851.9,3851.8,5.75168]
[1753642128353,6.0505,3851.9,3851.8,5.75168]
[1753642128550,2.5977,3851.9,3851.8,6.66818]
[1753642128950,4.0292,3851.9,3851.8,6.66818]
[1753642130547,4.8473,3851.9,3851.8,6.66818]
[1753642131647,6.0505,3851.9,3851.8,6.66818]
[1753642132057,4.8473,3851.9,3851.8,6.66818]
[1753642132445,0.2,3851.9,3851.8,6.66818]
[1753642132648,0.88979222,3851.9,3851.8,6.66818]
[1753642133556,7.25935222,3851.9,3851.8,6.66818]
[1753642133749,4.71899222,3851.9,3851.8,6.66818]
[1753642135356,5.23805222,3851.9,3851.8,6.66818]
[1753642135554,4.0292,3851.9,3851.8,6.66818]
[1753642136557,1.6083,3851.9,3851.8,6.66818]
[1753642136749,0.2,3851.9,3851.8,6.66818]
[1753642136952,2.0151,3852.3,3852.2,2.92252]
[1753642137149,3.54733497,3852.3,3852.2,27.78512]
[1753642137352,4.53673497,3852.3,3852.2,27.78512]
[1753642138549,5.05574497,3852.3,3852.2,27.78512]
[1753642138751,3.10523497,3852.3,3852.2,27.78512]
[1753642138953,0.018,3852.3,3852.2,27.78512]
[1753642140261,0.018,3852.3,3852.2,30.99292]
[1753642140456,2.7298,3852.8,3852.3,1.29751]
[1753642140457,1.5392,3852.8,3852.3,1.29751]
[1753642140664,1.5392,3852.8,3852.7,5.62276]
[1753642140864,3.10613271,3852.8,3852.7,27.60016]
[1753642141062,5.20647271,3852.8,3852.7,27.60016]
[1753642141362,7.19737271,3852.8,3852.7,25.29316]
[1753642141565,6.67843271,3852.8,3852.7,27.60016]
[1753642141861,5.9894,3852.8,3852.7,27.60016]
[1753642142064,6.50834,3852.8,3852.7,27.60016]
[1753642142760,3.9985,3852.8,3852.7,27.60016]
[1753642143165,6.50834,3852.8,3852.7,26.73876]
[1753642143862,5.9894,3852.8,3852.7,26.73876]
[1753642144266,5.9894,3852.8,3852.7,27.60016]
[1753642144457,6.50834,3852.8,3852.7,27.60016]
[1753642144763,5.9894,3852.8,3852.7,4.17716]
[1753642144965,6.50834,3852.8,3852.7,23.73736]
[1753642145665,6.50834,3852.8,3852.7,24.33136]
[1753642145865,6.50834,3852.8,3852.7,25.29116]
[1753642148064,6.50834,3852.8,3852.7,0.594]
[1753642148364,6.50834,3852.8,3851.7,3.2078]
[1753642148365,5.9894,3852.3,3851.7,3.2078]
[1753642148565,5.9894,3851.8,3851.7,6.60149]
[1753642148771,5.9894,3851.8,3851.7,29.94169]
[1753642148959,6.50848,3851.8,3851.7,29.94169]
[1753642149158,6.50848,3851.8,3851.7,8.3116]
[1753642149359,6.50848,3851.8,3851.7,26.94229]
[1753642149565,6.50848,3851.8,3851.7,23.73449]
[1753642152868,2.90082,3851.5,3851.4,2.6984]
[1753642153072,6.50852,3851.5,3851.4,23.8104]
[1753642153271,6.50852,3851.5,3851.4,22.541]
[1753642153467,6.50852,3851.5,3851.4,21.112]
[1753642155080,5.31795,3851.3,3851.2,21.948]
[1753642155375,6.50855,3851.3,3851.2,21.948]
[1753642155673,6.50855,3851.3,3851.2,22.46716]
[1753642155873,6.50855,3851.3,3851.2,21.948]
[1753642156061,6.50855,3851.3,3851.2,22.46716]
[1753642156771,6.50855,3851.3,3851.2,21.948]
[1753642157867,6.50855,3851.3,3851.2,23.2174]
[1753642158867,7.2407574,3851.3,3851.2,23.2174]
[1753642159372,7.2407574,3851.3,3851.2,21.113]
[1753642160773,7.2407574,3851.3,3851.2,21.948]
[1753642160973,7.2407574,3851.3,3851.2,23.2174]
[1753642161567,7.2407574,3851.3,3851.2,21.948]
[1753642162072,7.2407574,3851.3,3851.2,23.2174]
[1753642162273,7.2407574,3851.3,3851.2,26.2168]
[1753642162773,7.2407574,3851.3,3851.2,24.7712]
[1753642163274,6.50855,3851.3,3851.2,24.7712]
[1753642163476,7.2407574,3851.3,3851.2,23.8114]
[1753642164080,7.2407574,3851.3,3851.2,21.948]
[1753642164272,6.50857,3851.1,3851.0,1.2694]
[1753642164580,6.50859,3851.0,3850.9,23.7366]
[1753642164779,6.50859,3851.0,3850.9,25.2904]
[1753642164976,6.50859,3851.0,3850.9,26.736]
[1753642165973,6.50859,3851.0,3850.9,27.5974]
[1753642171079,6.59109,3851.0,3850.9,2.6849]
[1753642171283,6.59109,3851.0,3850.9,24.3161]
[1753642171985,6.59109,3851.0,3850.9,26.7357]
[1753642173184,6.59109,3851.0,3850.9,0.835]
[1753642175186,6.49361,3850.8,3850.7,24.3178]
[1753642175481,6.49361,3850.8,3850.7,3.2078]
[1753642175983,6.49361,3850.8,3849.9,1.1614]
[1753642176175,5.1114274,3850.0,3849.9,6.34233]
[1753642176382,1.40272,3850.0,3849.9,6.34233]
[1753642177286,2.84442,3850.0,3849.9,6.34233]
[1753642177787,2.84442,3850.0,3849.9,5.823]
[1753642177981,3.2078,3850.1,3850.0,0.51932]
[1753642178181,3.2078,3850.1,3850.0,27.45432]
[1753642178383,6.64611,3850.1,3850.0,26.935]
[1753642178588,9.70151,3850.1,3850.0,26.935]
[1753642178788,6.49371,3850.1,3850.0,26.935]
[1753642179093,6.49371,3850.1,3850.0,27.45432]
[1753642182488,5.22061,3850.1,3850.0,27.45432]
[1753642183280,6.49371,3850.1,3850.0,24.6786]
[1753642183487,1.2982,3850.4,3850.0,26.935]
[1753642183488,1.4417,3850.3,3850.0,26.935]
[1753642183687,1.40271,3850.2,3850.1,6.34229]
[1753642183889,1.99661,3850.2,3850.1,6.34229]
[1753642184088,4.37921,3850.2,3850.1,6.34229]
[1753642184290,5.65231,3850.2,3850.1,6.34229]
[1753642184490,5.65231,3850.2,3850.1,5.823]
[1753642184686,6.49371,3850.2,3850.1,5.823]
[1753642185693,6.49371,3850.2,3850.1,6.34231]
[1753642187481,0.51928,3850.4,3850.3,0.51927]
[1753642187694,0.51923,3850.7,3850.6,5.823]
[1753642187991,0.51923,3850.7,3850.6,26.934]
[1753642188190,2.84433,3850.7,3850.6,26.934]
[1753642188593,3.43823,3850.7,3850.6,26.934]
[1753642188990,3.43823,3850.7,3850.6,27.45324]
[1753642189388,1.40263,3850.7,3850.6,27.45324]
[1753642189589,0.51922,3850.8,3850.7,2.92441]
[1753642189794,1.40262,3850.8,3850.7,6.34221]
[1753642189991,3.43822,3850.8,3850.7,6.34221]
[1753642190296,6.49362,3850.8,3850.7,6.34221]
[1753642191185,6.49362,3850.8,3850.7,5.823]
[1753642191998,6.49362,3850.8,3850.7,4.973]
[1753642193090,6.49362,3850.8,3850.7,5.823]
[1753642193292,2.3762,3850.5,3850.4,4.973]
[1753642193493,6.49367,3850.5,3850.4,26.932]
[1753642193692,6.49367,3850.5,3850.4,27.45127]
[1753642194796,4.37917,3850.5,3850.4,27.45127]
[1753642195394,5.65227,3850.5,3850.4,27.45127]
[1753642195895,5.65227,3850.5,3850.4,26.932]
[1753642196502,6.49367,3850.5,3850.4,26.932]
[1753642197006,6.49367,3850.5,3850.4,27.45127]
[1753642198097,6.49367,3850.5,3850.4,26.932]
[1753642198595,6.57519,3850.2,3850.1,5.6283]
[1753642198797,6.57519,3850.2,3850.1,26.7353]
[1753642200500,6.57519,3850.2,3850.1,27.6281]
[1753642204002,6.0559,3850.2,3850.1,27.6281]
[1753642204205,4.015,3850.2,3850.1,27.6281]
[1753642205007,3.0237,3850.5,3850.4,6.52107]
[1753642205303,4.015,3850.5,3850.4,27.62507]
[1753642206602,5.2519,3850.5,3850.4,27.62507]
[1753642206903,5.77115,3850.5,3850.4,27.62507]
[1753642207105,6.57515,3850.5,3850.4,27.62507]
[1753642207304,6.0559,3850.5,3850.4,26.73227]
[1753642208199,6.0559,3850.5,3850.4,27.62507]
[1753642209305,1.4847,3850.5,3850.4,27.62507]
[1753642209497,3.2078,3850.7,3850.6,6.52104]
[1753642209702,3.2078,3850.7,3850.6,27.62304]
[1753642211011,1.539,3850.8,3850.7,2.87893]
[1753642211306,3.10386239,3850.8,3850.7,6.52103]
[1753642211603,2.4085,3850.8,3850.7,6.52103]
[1753642213107,5.2519,3851.1,3851.0,5.28849]
[1753642213308,7.27036913,3851.1,3851.0,26.38749]
[1753642213602,7.27036913,3851.1,3851.0,25.21039]
[1753642214100,7.27036913,3851.1,3851.0,26.72719]
[1753642214306,6.75119913,3851.1,3851.0,26.72719]
[1753642214708,6.75119913,3851.1,3851.0,27.61999]
[1753642215508,7.27036913,3851.1,3851.0,27.61999]
[1753642216916,6.75119913,3851.1,3851.0,6.52099]
[1753642217107,7.27036913,3851.1,3851.0,6.52099]
[1753642217915,6.75119913,3851.1,3851.0,6.52099]
[1753642218815,7.27036913,3851.1,3851.0,6.52099]
[1753642219008,6.75119913,3851.1,3851.0,6.52099]
[1753642219407,7.27036913,3851.1,3851.0,6.52099]
[1753642221017,7.27036913,3851.1,3851.0,5.62819]
[1753642221314,7.27036913,3851.1,3851.0,2.54549]
[1753642221506,1.4192,3850.6,3850.5,2.80065]
[1753642221712,6.0559,3850.6,3850.5,26.38055]
[1753642222117,6.0559,3850.6,3850.5,25.20345]
[1753642222614,6.0559,3850.6,3850.5,26.71925]
[1753642222816,6.0559,3850.6,3850.5,27.61205]
[1753642223115,6.57514,3850.6,3850.5,27.61205]
[1753642223811,6.0559,3850.6,3850.5,27.61205]
[1753642224013,6.57514,3850.6,3850.5,27.61205]
[1753642224310,6.0559,3850.6,3850.5,27.61205]
[1753642224515,6.57514,3850.6,3850.5,27.61205]
[1753642224812,6.57514,3850.6,3850.5,24.23135]
[1753642225017,6.57518,3850.3,3850.2,2.0263]
[1753642225222,6.57518,3850.3,3850.2,23.1163]
[1753642225415,6.57518,3850.3,3850.2,22.40309]
[1753642225614,2.92979,3850.2,3850.1,0.5193]
[1753642225913,6.57519,3850.2,3850.1,21.6083]
[1753642226119,6.57519,3850.2,3850.1,22.8408]
[1753642226717,6.57519,3850.2,3850.1,23.6346]
[1753642228619,6.0559,3850.2,3850.1,23.6346]
[1753642228822,6.0559,3850.2,3850.1,26.6562]
[1753642229926,4.015,3850.2,3850.1,27.4963]
[1753642230221,3.8414,3850.5,3850.4,6.36857]
[1753642230423,2.9053,3850.5,3850.4,27.45557]
[1753642232930,5.7982,3850.8,3850.7,6.36853]
[1753642233226,1.5782697,3850.8,3850.7,27.45353]
[1753642233623,3.6005697,3850.8,3850.7,27.45353]
[1753642233926,2.3245,3851.0,3850.9,6.3685]
[1753642234127,4.5366705,3851.0,3850.9,27.4525]
[1753642234332,6.4934705,3851.0,3850.9,27.4525]
[1753642234829,5.7982,3851.0,3850.9,27.4525]
[1753642236133,5.7982,3851.0,3850.9,26.6124]
[1753642237224,6.49346557,3851.0,3850.9,2.507]
[1753642237424,2.3213,3850.5,3850.4,1.88157]
[1753642237621,5.7982,3850.5,3850.4,21.60027]
[1753642237828,0.51929,3850.4,3850.3,21.60028]
[1753642238034,7.0496974,3850.4,3850.3,21.081]
[1753642239128,1.8846074,3850.4,3849.8,2.25241528]
[1753642239428,5.7982,3849.3,3848.9,3.22045411]
[1753642239626,7.0498274,3849.3,3848.9,24.81891411]
[1753642239827,7.0498274,3849.3,3848.7,4.6189]
[1753642239828,2.84078,3848.8,3848.7,3.7273]
[1753642240125,6.5304074,3848.8,3848.7,3.7273]
[1753642240327,6.5304074,3848.8,3848.7,3.2078]
[1753642240627,6.5304074,3848.8,3848.6,21.079]
[1753642240628,2.8408,3848.7,3848.6,21.079]
[1753642240827,6.3177,3848.7,3848.6,21.079]
[1753642241428,5.7982,3848.7,3848.6,21.59851]
[1753642241830,6.3177,3848.7,3848.6,21.59851]
[1753642242130,5.7982,3848.7,3848.6,21.59851]
[1753642242329,5.7982,3848.7,3848.6,24.18091]
[1753642242929,5.7982,3848.7,3848.6,25.19661]
[1753642243131,4.6458,3848.7,3848.6,27.44781]
[1753642243333,5.7982,3848.7,3848.6,27.44781]
[1753642243529,5.7982,3848.7,3848.5,0.51951]
[1753642243734,4.9152,3848.6,3848.5,0.51952]
[1753642244037,4.9152,3848.6,3848.5,21.59952]
[1753642244230,5.7982,3848.6,3848.5,21.59952]
[1753642244736,6.31771,3848.6,3848.5,21.59952]
[1753642245325,3.9400074,3848.8,3848.3,1.2201]
[1753642245326,2.3213,3848.4,3848.3,1.2201]
[1753642245529,2.3213,3848.2,3848.1,3.7891]
[1753642245737,5.7982,3848.2,3848.1,26.61078]
[1753642245937,5.7982,3848.2,3848.1,27.45088]
[1753642246731,6.3825,3848.5,3848.4,0.51954]
[1753642246930,2.3999,3848.5,3848.4,27.44984]
[1753642247130,3.8414,3848.5,3848.4,27.44984]
[1753642247537,4.9938,3848.5,3848.4,27.44984]
[1753642247837,3.8414,3848.5,3848.4,27.44984]
[1753642248535,2.5939,3848.8,3848.7,0.5195]
[1753642248830,5.7982,3848.8,3848.7,6.3688]
[1753642249234,4.6458,3848.8,3848.7,6.3688]
[1753642249435,2.9053,3848.8,3848.7,6.3688]
[1753642249729,1.67185,3849.1,3849.0,0.51946]
[1753642249937,3.8414,3849.1,3849.0,6.36876]
[1753642250132,2.9053,3849.1,3849.0,6.36876]
[1753642250337,4.6458,3849.1,3849.0,6.36876]
[1753642250532,5.7982,3849.1,3849.0,4.11756]
[1753642250732,6.31764,3849.1,3849.0,0.51946]
[1753642251934,2.03636,3849.0,3848.9,0.51946]
[1753642252142,6.31768,3848.8,3848.7,23.0678]
[1753642252441,5.7982,3848.8,3848.7,2.5073]
[1753642252635,5.7982,3848.8,3848.7,4.1176]
[1753642252831,5.7982,3848.8,3848.7,5.5287]
[1753642254241,5.7982,3848.8,3848.7,6.3688]
[1753642254638,0.883,3849.8,3849.4,1.29849]
[1753642254846,3.2078,3849.9,3849.8,6.36865]
[1753642255048,3.2078,3849.9,3849.8,27.44765]
[1753642255242,4.61007,3850.4,3850.3,0.51928]
[1753642255447,10.22384616,3850.4,3850.3,5.52848]
[1753642256342,9.70457616,3850.4,3850.3,5.52848]
[1753642256739,0.69857616,3850.4,3850.3,6.36858]
[1753642257142,4.0908,3850.8,3850.7,6.36853]
[1753642257343,6.30629522,3850.8,3850.7,6.36853]
[1753642257649,7.84453748,3850.8,3850.7,6.36853]
[1753642257947,9.74659522,3850.8,3850.7,6.36853]
[1753642258344,9.74659522,3850.8,3850.7,5.52843]
[1753642258549,7.05800522,3850.8,3850.7,5.52843]
[1753642258745,6.53879522,3850.8,3850.7,5.52843]
[1753642259848,5.8402,3850.8,3850.7,5.0092]
[1753642260045,6.35941,3850.8,3850.7,3.5981]
[1753642260446,9.56721,3850.8,3850.7,3.5981]
[1753642260646,9.56721,3850.8,3850.7,2.5824]
[1753642260847,9.56721,3850.8,3850.7,3.10163]
[1753642261048,6.35941,3850.8,3850.7,3.10163]
[1753642261244,9.56721,3850.8,3850.7,4.13303]
[1753642261448,9.56721,3850.8,3850.7,5.59923]
[1753642261849,6.35941,3850.8,3850.7,5.59923]
[1753642262251,9.56721,3850.8,3850.7,5.59923]
[1753642262554,6.35941,3850.8,3850.7,5.59923]
[1753642262947,9.56721,3850.8,3850.7,26.66923]
[1753642263149,9.56721,3850.8,3850.7,26.15]
[1753642263446,9.56721,3850.8,3850.7,3.6138]
[1753642263643,9.56721,3850.8,3850.7,25.20303]
[1753642264048,9.56721,3850.8,3850.7,4.13303]
[1753642264248,9.56721,3850.8,3850.7,25.20203]
[1753642264457,9.56721,3850.8,3850.7,24.6828]
[1753642264750,9.56721,3850.8,3850.7,25.20203]
[1753642266350,3.7886,3850.8,3850.7,27.56063]
[1753642266552,3.2078,3850.8,3850.7,27.56063]
[1753642266753,1.09151,3850.9,3850.8,2.89931]
[1753642266949,2.9879,3850.9,3850.8,6.47561]
[1753642267149,4.7015,3850.9,3850.8,6.47561]
[1753642267351,4.9496,3850.9,3850.8,5.9564]
[1753642267552,6.3243,3850.9,3850.8,5.064]
[1753642268154,6.3243,3850.9,3850.8,26.129]
[1753642268456,6.3243,3850.9,3850.8,26.64821]
[1753642269256,6.3243,3850.9,3850.8,21.8223]
[1753642270150,6.3243,3850.9,3850.8,23.6304]
[1753642271555,6.3243,3850.9,3850.8,26.128]
[1753642272157,3.8434,3850.9,3850.8,27.53961]
[1753642272457,2.4163,3850.9,3850.8,27.53961]
[1753642272756,1.4278,3850.9,3850.8,27.53961]
[1753642272952,1.4278,3850.9,3850.8,6.47561]
[1753642273354,1.4278,3850.9,3850.8,27.53661]
[1753642274051,2.8549,3850.9,3850.8,27.53661]
[1753642274459,3.8434,3850.9,3850.8,27.53661]
[1753642274950,3.8434,3850.9,3850.8,6.47561]
[1753642275159,7.0512,3851.2,3851.1,6.47557]
[1753642275352,7.0512,3851.2,3851.1,27.53457]
[1753642275752,3.2078,3851.2,3851.1,27.53457]
[1753642276147,9.53206,3851.2,3851.1,25.17597]
[1753642276350,9.53206,3851.2,3851.1,26.64217]
[1753642277153,9.53206,3851.2,3850.9,0.7583]
[1753642277154,1.2865,3851.0,3850.9,0.7583]
[1753642277353,3.5795074,3851.0,3850.9,21.057]
[1753642277751,7.0565074,3851.0,3850.9,21.057]
[1753642277950,7.0565074,3851.0,3850.1,1.29827]
[1753642277951,1.7558,3850.4,3849.9,4.4255]
[1753642278158,5.8051,3850.0,3849.9,4.36563]
[1753642278360,5.8051,3850.0,3849.9,25.42263]
[1753642278555,6.32442,3850.0,3849.9,26.121]
[1753642278860,6.32442,3850.0,3849.9,26.64033]
[1753642279056,6.32442,3850.0,3849.9,27.53273]
[1753642279252,4.6349,3850.4,3849.9,23.033]
[1753642279451,0.8555,3850.6,3850.5,6.47565]
[1753642279654,7.57041,3850.8,3850.7,6.47563]
[1753642280049,7.57041,3850.8,3850.7,27.53263]
[1753642280455,7.0512,3850.8,3850.7,27.53263]
[1753642281060,7.57041,3850.8,3850.7,27.53263]
[1753642281262,7.8185,3850.8,3850.7,27.53163]
[1753642281462,9.0129,3850.8,3850.7,27.53163]
[1753642281860,7.02452438,3850.8,3850.7,21.056]
[1753642282354,10.23232438,3850.8,3850.7,21.056]
[1753642282960,9.53211,3850.8,3850.7,21.8143]
[1753642283167,9.53211,3850.8,3850.7,26.12]
[1753642283465,6.32431,3850.8,3850.7,27.0124]
[1753642283859,4.6107,3850.8,3850.7,27.53163]
[1753642284055,2.08,3851.0,3850.9,0.5192]
[1753642284255,5.06391017,3851.0,3850.9,6.4756]
[1753642284459,5.06391017,3851.0,3850.9,5.9564]
[1753642284858,0.8555,3851.2,3850.9,5.9564]
[1753642285058,3.8434,3851.2,3851.1,6.47557]
[1753642285260,4.54469545,3851.2,3851.1,6.47557]
[1753642285467,5.06385545,3851.2,3851.1,6.47557]
[1753642285774,7.02555545,3851.2,3851.1,5.58317]
[1753642286362,6.50639545,3851.2,3851.1,5.58317]
[1753642286567,1.55679545,3851.2,3851.1,6.47557]
[1753642286868,0.70129545,3851.2,3851.1,6.47557]
[1753642289463,0.70129545,3851.2,3851.1,11.47557]
[1753642289663,0.70129545,3851.2,3851.1,27.52657]
[1753642290667,0.70129545,3851.2,3851.1,32.52657]
[1753642290972,1.39958994,3851.8,3851.7,6.30919]
[1753642291171,1.39958994,3851.8,3851.7,27.35919]
[1753642291567,0.2,3851.9,3851.8,6.30918]
[1753642292767,1.59958994,3851.9,3851.8,6.30918]
[1753642293873,2.11864994,3851.9,3851.8,6.30918]
[1753642294072,6.25078994,3851.9,3851.8,6.30918]
[1753642294473,5.44568994,3851.9,3851.8,6.30918]
[1753642294873,4.0461,3851.9,3851.8,6.30918]
[1753642295680,5.44568994,3851.9,3851.8,5.7901]
[1753642295890,6.46706,3851.9,3851.8,21.56608]
[1753642296384,5.948,3851.9,3851.8,25.03638]
[1753642296572,5.948,3851.9,3851.8,26.45338]
[1753642297072,0.2,3851.9,3851.8,27.35618]
[1753642299477,3.2078,3852.2,3852.1,6.30914]
[1753642299681,8.9558,3852.2,3852.1,27.35214]
[1753642300185,8.9558,3852.2,3852.1,26.44934]
[1753642300685,5.748,3852.2,3852.1,5.40634]
[1753642300881,5.748,3852.2,3852.1,23.87284]
[1753642301481,5.748,3852.2,3852.1,3.98934]
[1753642301680,5.748,3852.2,3852.1,25.03034]
[1753642301879,5.748,3852.2,3852.1,1.25614]
[1753642302082,5.748,3852.1,3852.0,0.51904]
[1753642302382,5.748,3852.1,3851.8,0.51906]
[1753642302686,5.748,3851.8,3851.7,0.51909]
[1753642302893,6.26708,3851.8,3851.7,0.51909]
[1753642303100,6.26708,3851.8,3851.7,21.56009]
[1753642303299,9.47488,3851.8,3851.7,21.56009]
[1753642303495,4.6512,3851.4,3851.3,38.5595]
[1753642303693,2.88126,3851.2,3851.1,0.51917]
[1753642303893,6.26716,3851.2,3851.1,21.56017]
[1753642305005,3.97811,3850.9,3850.8,0.5192]
[1753642305299,2.3621,3850.8,3850.3,2.5765]
[1753642305495,2.3621,3850.6,3850.5,0.51925]
[1753642305699,3.3859,3850.6,3850.5,6.30935]
[1753642305895,2.2891,3850.6,3850.5,6.30935]
[1753642306095,4.36534,3850.6,3850.5,6.30935]
[1753642306295,5.17044,3850.6,3850.5,6.30935]
[1753642306496,5.748,3850.6,3850.5,6.30935]
[1753642306697,6.26724,3850.6,3850.5,6.30935]
[1753642307401,6.26724,3850.6,3850.5,5.40655]
[1753642307603,6.26724,3850.6,3850.5,2.99975]
[1753642308403,6.26724,3850.6,3850.5,3.98955]
[1753642308703,6.26724,3850.6,3850.5,5.40655]
[1753642308704,5.748,3850.6,3850.5,5.40655]
[1753642308898,5.748,3850.6,3850.5,6.30935]
[1753642309100,1.4128,3850.9,3850.8,6.30931]
[1753642309298,1.9873,3850.9,3850.8,27.35131]
[1753642309499,2.5096,3851.9,3851.8,1.5737]
[1753642309699,3.2078,3852.4,3851.8,26.8321]
[1753642309700,0.8763,3852.1,3851.8,26.8321]
[1753642309901,5.748,3852.1,3852.0,6.30915]
[1753642310101,2.3801,3852.3,3852.2,2.82982]
[1753642310302,2.3801,3852.3,3852.2,27.35212]
[1753642310706,3.7929,3852.3,3852.2,27.35212]
[1753642311098,5.766,3852.3,3852.2,27.35212]